[Event "Skanderborg Skakklub SmukSkak EMT"]
[Site "Niels Ebbesenskolen, Skanderborg, Denmark"]
[Date "2020.08.22"]
[Round "2.1"]
[White "Olsen, Michael R. W."]
[Black "Hansen, Morten Lyck"]
[Result "1-0"]
[TimeControl "90 min. til 40 træk, derefter 30 min. plus opsparet tid til resten af partiet med 30 sek. tillæg pr. træk fra træk ét."]
[WhiteFideId "1440969"]
[BlackFideId "1408437"]
[WhiteElo "2104"]
[BlackElo "1945"]

1. Nf3 {[%clk 01:30:18]} {[%emt 00:00:41]} d5 {[%clk 01:30:41]} {[%emt
00:00:20]} 2. c4 {[%clk 01:30:35]} {[%emt 00:00:13]} c6 {[%clk 01:30:33]}
{[%emt 00:00:38]} 3. e3 {[%clk 01:30:20]} {[%emt 00:00:45]} Nf6 {[%clk
01:30:25]} {[%emt 00:00:38]} 4. Nc3 {[%clk 01:30:40]} {[%emt 00:00:09]} e6
{[%clk 01:28:57]} {[%emt 00:01:59]} 5. a3 {[%clk 01:30:52]} {[%emt 00:00:18]}
Bd6 {[%clk 01:28:55]} {[%emt 00:00:30]} 6. Be2 {[%clk 01:30:27]} {[%emt
00:00:56]} O-O {[%clk 01:28:47]} {[%emt 00:00:38]} 7. d4 {[%clk 01:29:36]}
{[%emt 00:01:24]} Nbd7 {[%clk 01:28:43]} {[%emt 00:00:36]} 8. Qc2 {[%clk
01:28:57]} {[%emt 00:01:07]} a6 {[%clk 01:26:51]} {[%emt 00:02:29]} 9. e4
{[%clk 01:23:54]} {[%emt 00:05:28]} dxe4 {[%clk 01:27:07]} {[%emt 00:00:09]} 10.
Nxe4 {[%clk 01:24:16]} {[%emt 00:00:19]} Nxe4 {[%clk 01:27:13]} {[%emt
00:00:16]} 11. Qxe4 {[%clk 01:24:38]} {[%emt 00:00:15]} Nf6 {[%clk 01:26:36]}
{[%emt 00:01:01]} 12. Qc2 {[%clk 01:23:20]} {[%emt 00:01:48]} c5 {[%clk
01:25:44]} {[%emt 00:01:20]} 13. dxc5 {[%clk 01:22:20]} {[%emt 00:01:28]} Bxc5
{[%clk 01:26:07]} {[%emt 00:00:10]} 14. b4 {[%clk 01:20:37]} {[%emt 00:02:12]}
Be7 {[%clk 01:25:38]} {[%emt 00:00:59]} 15. Bb2 {[%clk 01:20:53]} {[%emt
00:00:14]} Bd7 {[%clk 01:18:29]} {[%emt 00:07:39]} 16. Ng5 {[%clk 01:18:25]}
{[%emt 00:02:57]} g6 {[%clk 01:18:21]} {[%emt 00:00:45]} 17. Qc3 {[%clk
01:15:02]} {[%emt 00:03:44]} Bc6 {[%clk 01:15:58]} {[%emt 00:02:56]} 18. Bf3
{[%clk 01:11:34]} {[%emt 00:03:53]} Bxf3 {[%clk 01:07:47]} {[%emt 00:08:43]} 19.
Nxf3 {[%clk 01:09:09]} {[%emt 00:02:55]} Qd6 {[%clk 00:59:02]} {[%emt
00:09:14]} 20. Rd1 {[%clk 01:06:22]} {[%emt 00:03:19]} Qf4 {[%clk 00:58:42]}
{[%emt 00:00:51]} 21. Rd4 {[%clk 00:53:08]} {[%emt 00:13:44]} Ne4 {[%clk
00:56:42]} {[%emt 00:02:30]} 22. Qc2 {[%clk 00:49:26]} {[%emt 00:04:11]} f5
{[%clk 00:56:26]} {[%emt 00:00:48]} 23. Rd7 {[%clk 00:47:35]} {[%emt 00:02:20]}
Bf6 {[%clk 00:53:07]} {[%emt 00:03:48]} 24. O-O {[%clk 00:38:40]} {[%emt
00:09:27]} Rf7 {[%clk 00:50:43]} {[%emt 00:02:55]} 25. Rxf7 {[%clk 00:37:22]}
{[%emt 00:01:45]} Kxf7 {[%emt 00:00:23]} 26. Rd1 {[%emt 00:03:12]} Re8 {[%emt
00:07:51]} 27. c5 {[%emt 00:01:09]} Qc7 {[%emt 00:02:25]} 28. Bxf6 {[%emt
00:04:47]} Nxf6 {[%emt 00:02:51]} 29. Rd6 {[%emt 00:07:01]} h6 {[%emt
00:06:29]} 30. Qd2 {[%emt 00:02:28]} g5 {[%emt 00:01:59]} 31. h4 {[%emt
00:03:48]} g4 {[%emt 00:01:16]} 32. Ne5+ {[%clk 00:17:47]} {[%emt 00:00:05]}
Kg7 {[%clk 00:32:01]} {[%emt 00:00:04]} 33. Qd4 {[%clk 00:16:35]} {[%emt
00:01:41]} Re7 {[%clk 00:31:50]} {[%emt 00:00:46]} 34. a4 {[%clk 00:13:08]}
{[%emt 00:03:51]} h5 {[%clk 00:29:49]} {[%emt 00:02:32]} 35. g3 {[%clk
00:09:33]} {[%emt 00:04:06]} Ne4 {[%clk 00:26:07]} {[%emt 00:04:14]} 36. Rd8
{[%clk 00:05:59]} {[%emt 00:04:01]} Nc3 {[%clk 00:25:11]} {[%emt 00:01:26]} 37.
Qxc3 {[%clk 00:04:55]} {[%emt 00:01:34]} Qxd8 {[%clk 00:25:26]} {[%emt
00:00:15]} 38. Nc6+ {[%clk 00:05:14]} {[%emt 00:00:11]} 1-0

[Event "Skanderborg Skakklub SmukSkak EMT"]
[Site "Niels Ebbesenskolen, Skanderborg, Denmark"]
[Date "2020.08.22"]
[Round "2.2"]
[White "Knudsen, Martin"]
[Black "Wilton, Lars"]
[Result "1/2-1/2"]
[TimeControl "90 min. til 40 træk, derefter 30 min. plus opsparet tid til resten af partiet med 30 sek. tillæg pr. træk fra træk ét."]
[WhiteFideId "1406523"]
[BlackFideId "1404962"]
[WhiteElo "1990"]
[BlackElo "1984"]

1. d4 {[%clk 01:30:56]} {[%emt 00:00:03]} Nf6 {[%clk 01:30:52]} {[%emt
00:00:09]} 2. c4 {[%clk 01:31:18]} {[%emt 00:00:08]} e6 {[%clk 01:30:58]}
{[%emt 00:00:23]} 3. Nf3 {[%clk 01:31:25]} {[%emt 00:00:22]} d5 {[%clk
01:28:19]} {[%emt 00:03:18]} 4. e3 {[%clk 01:31:28]} {[%emt 00:00:20]} Nbd7
{[%clk 01:28:10]} {[%emt 00:00:38]} 5. Be2 {[%clk 01:30:32]} {[%emt 00:01:26]}
c6 {[%clk 01:24:23]} {[%emt 00:04:18]} 6. O-O {[%clk 01:30:02]} {[%emt
00:00:59]} Bd6 {[%clk 01:20:40]} {[%emt 00:04:14]} 7. Nbd2 {[%clk 01:30:06]}
{[%emt 00:00:25]} O-O {[%clk 01:10:33]} {[%emt 00:10:38]} 8. b3 {[%clk
01:29:29]} {[%emt 00:01:06]} Ne4 {[%clk 01:08:33]} {[%emt 00:02:40]} 9. Bb2
{[%clk 01:28:58]} {[%emt 00:00:51]} f5 {[%clk 01:08:44]} {[%emt 00:00:19]} 10.
Ne5 {[%clk 01:21:19]} {[%emt 00:08:09]} Ndf6 {[%clk 01:00:23]} {[%emt
00:08:51]} 11. f3 {[%clk 01:18:05]} {[%emt 00:03:44]} Nxd2 {[%clk 01:00:12]}
{[%emt 00:00:42]} 12. Qxd2 {[%clk 01:18:27]} {[%emt 00:00:08]} dxc4 {[%clk
00:52:36]} {[%emt 00:08:06]} 13. Nxc4 {[%clk 01:16:36]} {[%emt 00:02:20]} Bc7
{[%clk 00:52:49]} {[%emt 00:00:17]} 14. Qc2 {[%clk 01:13:11]} {[%emt 00:03:55]}
Nd5 {[%clk 00:51:16]} {[%emt 00:02:03]} 15. Qd2 {[%clk 00:59:28]} {[%emt
00:14:13]} b5 {[%clk 00:33:47]} {[%emt 00:17:58]} 16. Ne5 {[%clk 00:57:07]}
{[%emt 00:02:51]} Bxe5 {[%clk 00:34:03]} {[%emt 00:00:24]} 17. dxe5 {[%clk
00:57:23]} {[%emt 00:00:04]} Qb6 {[%clk 00:34:23]} {[%emt 00:00:11]} 18. Bd4
{[%clk 00:53:24]} {[%emt 00:04:29]} c5 {[%clk 00:34:31]} {[%emt 00:00:22]} 19.
Bb2 {[%clk 00:51:18]} {[%emt 00:02:36]} Bb7 {[%clk 00:29:04]} {[%emt 00:05:57]}
20. Kh1 {[%clk 00:51:06]} {[%emt 00:00:41]} Rad8 {[%clk 00:29:13]} {[%emt
00:00:24]} 21. Rfd1 {[%clk 00:45:55]} {[%emt 00:05:39]} f4 {[%clk 00:23:58]}
{[%emt 00:05:45]} 22. exf4 {[%clk 00:44:18]} {[%emt 00:02:14]} Nxf4 {[%clk
00:24:14]} {[%emt 00:00:08]} 23. Qe3 {[%clk 00:43:45]} {[%emt 00:01:03]} Nxe2
{[%clk 00:20:22]} {[%emt 00:04:22]} 24. Qxe2 {[%clk 00:44:07]} {[%emt
00:00:10]} Rd5 {[%clk 00:15:42]} {[%emt 00:05:13]} 25. Rac1 {[%clk 00:39:10]}
{[%emt 00:05:22]} Rfd8 {[%clk 00:13:47]} {[%emt 00:02:25]} 26. Rxd5 {[%clk
00:38:14]} {[%emt 00:01:26]} Bxd5 {[%clk 00:11:55]} {[%emt 00:02:21]} 27. Qf2
{[%clk 00:35:23]} {[%emt 00:03:22]} c4 {[%clk 00:10:48]} {[%emt 00:01:37]} 28.
Bd4 {[%clk 00:34:44]} {[%emt 00:01:09]} Qb7 {[%clk 00:09:46]} {[%emt 00:01:32]}
29. bxc4 {[%clk 00:32:34]} {[%emt 00:02:40]} Bxc4 {[%clk 00:10:06]} {[%emt
00:00:09]} 30. a3 {[%clk 00:23:39]} {[%emt 00:09:25]} a6 {[%clk 00:09:36]}
{[%emt 00:01:01]} 31. Bc5 {[%emt 00:04:31]} Rd3 {[%emt 00:00:03]} 32. Bd6 Qd5
{[%emt 00:00:01]} 33. Bb4 {[%emt 00:00:04]} Qd8 {[%emt 00:00:02]} 34. h3 {[%emt
00:00:08]} Qd5 {[%emt 00:00:18]} 35. Bd6 {[%emt 00:00:02]} Qd4 {[%emt
00:00:10]} 1/2-1/2

[Event "Skanderborg Skakklub SmukSkak EMT"]
[Site "Niels Ebbesenskolen, Skanderborg, Denmark"]
[Date "2020.08.22"]
[Round "2.3"]
[White "Pedersen, Lars Foldager"]
[Black "Bønnelykke, Ole"]
[Result "0-1"]
[TimeControl "90 min. til 40 træk, derefter 30 min. plus opsparet tid til resten af partiet med 30 sek. tillæg pr. træk fra træk ét."]
[WhiteFideId "1417649"]
[BlackFideId "1407287"]
[WhiteElo "1959"]
[BlackElo "2021"]

1. Nf3 {[%clk 01:30:40]} {[%emt 00:00:18]} Nf6 {[%clk 01:30:12]} {[%emt
00:00:50]} 2. c4 {[%clk 01:29:19]} {[%emt 00:01:48]} e6 {[%clk 01:29:37]}
{[%emt 00:01:07]} 3. d4 {[%clk 01:29:11]} {[%emt 00:00:45]} c5 {[%clk
01:29:25]} {[%emt 00:00:35]} 4. e3 {[%clk 01:27:45]} {[%emt 00:01:58]} Be7
{[%clk 01:29:20]} {[%emt 00:00:34]} 5. Be2 {[%clk 01:27:45]} {[%emt 00:00:31]}
O-O {[%clk 01:29:25]} {[%emt 00:00:24]} 6. O-O {[%clk 01:28:10]} {[%emt
00:00:05]} Qc7 {[%clk 01:27:52]} {[%emt 00:02:03]} 7. Nc3 {[%clk 01:25:54]}
{[%emt 00:02:46]} a6 {[%clk 01:27:41]} {[%emt 00:00:42]} 8. a3 {[%clk
01:16:23]} {[%emt 00:10:00]} b6 {[%clk 01:26:25]} {[%emt 00:01:57]} 9. b3
{[%clk 01:15:37]} {[%emt 00:01:07]} Bb7 {[%clk 01:26:22]} {[%emt 00:00:33]} 10.
Bb2 {[%clk 01:16:03]} {[%emt 00:00:04]} d6 {[%clk 01:23:58]} {[%emt 00:02:54]}
11. Rc1 {[%clk 01:14:28]} {[%emt 00:02:03]} Nbd7 {[%clk 01:22:55]} {[%emt
00:01:36]} 12. Qc2 {[%clk 01:12:01]} {[%emt 00:02:56]} Rac8 {[%clk 01:21:48]}
{[%emt 00:01:36]} 13. Rfd1 {[%clk 01:10:10]} {[%emt 00:02:21]} Rfd8 {[%clk
01:19:08]} {[%emt 00:03:16]} 14. d5 {[%clk 01:06:31]} {[%emt 00:04:03]} exd5
{[%clk 01:16:48]} {[%emt 00:02:54]} 15. Nxd5 {[%clk 01:05:40]} {[%emt
00:01:18]} Nxd5 {[%clk 01:13:56]} {[%emt 00:03:23]} 16. cxd5 {[%clk 01:06:05]}
{[%emt 00:00:04]} Bf6 {[%clk 01:12:51]} {[%emt 00:01:34]} 17. Bxf6 {[%clk
01:04:52]} {[%emt 00:01:44]} Nxf6 {[%clk 01:13:12]} {[%emt 00:00:09]} 18. Qf5
{[%clk 00:58:22]} {[%emt 00:06:59]} Qd7 {[%clk 01:04:19]} {[%emt 00:09:23]} 19.
Nh4 {[%clk 00:50:15]} {[%emt 00:08:38]} Rc7 {[%clk 01:01:39]} {[%emt 00:03:11]}
20. Bf3 {[%clk 00:46:23]} {[%emt 00:04:20]} Qe7 {[%clk 00:58:08]} {[%emt
00:04:09]} 21. Rc4 {[%clk 00:42:22]} {[%emt 00:04:25]} Bc8 {[%clk 00:53:14]}
{[%emt 00:05:24]} 22. Qd3 {[%clk 00:34:25]} {[%emt 00:08:27]} b5 {[%clk
00:51:58]} {[%emt 00:01:47]} 23. Rf4 {[%clk 00:33:34]} {[%emt 00:01:20]} g5
{[%clk 00:46:27]} {[%emt 00:06:01]} 24. Nf5 {[%emt 00:00:56]} Qe5 {[%clk
00:46:08]} {[%emt 00:00:44]} 25. Nh6+ {[%clk 00:29:05]} {[%emt 00:04:48]} Kh8
{[%clk 00:42:40]} {[%emt 00:03:51]} 26. Rf5 {[%clk 00:23:45]} {[%emt 00:05:54]}
Bxf5 {[%clk 00:42:39]} {[%emt 00:00:31]} 27. Nxf5 {[%clk 00:23:37]} {[%emt
00:00:41]} c4 {[%clk 00:41:23]} {[%emt 00:01:37]} 28. bxc4 {[%clk 00:21:04]}
{[%emt 00:03:02]} bxc4 {[%clk 00:41:30]} {[%emt 00:00:26]} 29. Qc2 {[%clk
00:20:45]} {[%emt 00:00:46]} g4 {[%clk 00:38:46]} {[%emt 00:03:20]} 30. Be2
{[%clk 00:20:55]} {[%emt 00:00:14]} h5 {[%clk 00:36:43]} {[%emt 00:02:33]} 31.
Bxc4 {[%clk 00:19:01]} {[%emt 00:02:24]} Rdc8 {[%clk 00:34:58]} {[%emt
00:02:15]} 32. Rd4 {[%clk 00:18:09]} {[%emt 00:01:22]} Rxc4 {[%clk 00:32:32]}
{[%emt 00:02:56]} 33. Rxc4 {[%clk 00:16:12]} {[%emt 00:02:27]} Qa1+ {[%clk
00:32:49]} {[%emt 00:00:12]} 0-1

[Event "Skanderborg Skakklub SmukSkak EMT"]
[Site "Niels Ebbesenskolen, Skanderborg, Denmark"]
[Date "2020.08.22"]
[Round "2.4"]
[White "Fogh, Jens Olaf Svanholm"]
[Black "Andersen, Rune"]
[Result "1-0"]
[TimeControl "90 min. til 40 træk, derefter 30 min. plus opsparet tid til resten af partiet med 30 sek. tillæg pr. træk fra træk ét."]
[WhiteFideId "1409476"]
[BlackFideId "1405683"]
[WhiteElo "2117"]
[BlackElo "2129"]

1. d4 {[%clk 01:30:55]} {[%emt 00:00:04]} d5 {[%clk 01:30:43]} {[%emt
00:00:18]} 2. Nf3 {[%clk 01:31:19]} {[%emt 00:00:06]} Nf6 {[%clk 01:31:08]}
{[%emt 00:00:05]} 3. e3 {[%clk 01:31:43]} {[%emt 00:00:05]} Bg4 {[%clk
01:28:43]} {[%emt 00:02:54]} 4. Be2 {[%clk 01:30:48]} {[%emt 00:01:26]} e6
{[%clk 01:28:20]} {[%emt 00:00:53]} 5. O-O {[%clk 01:30:02]} {[%emt 00:01:18]}
Bd6 {[%clk 01:27:14]} {[%emt 00:01:35]} 6. c4 {[%clk 01:25:18]} {[%emt
00:05:14]} c6 {[%clk 01:27:37]} {[%emt 00:00:07]} 7. Nc3 {[%clk 01:06:55]}
{[%emt 00:18:54]} Nbd7 {[%clk 01:27:24]} {[%emt 00:00:42]} 8. Nd2 {[%clk
00:55:20]} {[%emt 00:12:06]} Bf5 {[%clk 01:14:35]} {[%emt 00:13:19]} 9. Bf3
{[%clk 00:52:04]} {[%emt 00:03:46]} h5 {[%clk 01:10:29]} {[%emt 00:04:36]} 10.
e4 {[%clk 00:50:19]} {[%emt 00:02:16]} dxe4 {[%clk 01:09:05]} {[%emt 00:01:54]}
11. Ndxe4 {[%clk 00:47:48]} {[%emt 00:03:01]} Bxh2+ {[%clk 01:07:49]} {[%emt
00:01:46]} 12. Kxh2 {[%clk 00:47:38]} {[%emt 00:00:39]} Ng4+ {[%clk 01:07:49]}
{[%emt 00:00:30]} 13. Kg1 {[%clk 00:45:31]} {[%emt 00:02:37]} Qh4 {[%clk
01:05:52]} {[%emt 00:02:27]} 14. Bf4 {[%clk 00:45:54]} {[%emt 00:00:07]} Nxf2
{[%clk 00:58:01]} {[%emt 00:08:20]} 15. Bg3 {[%clk 00:36:25]} {[%emt 00:10:05]}
Nxd1 {[%clk 00:57:37]} {[%emt 00:00:50]} 16. Bxh4 {[%clk 00:36:34]} {[%emt
00:00:21]} Nxb2 {[%clk 00:56:21]} {[%emt 00:01:50]} 17. Nd6+ {[%clk 00:34:19]}
{[%emt 00:02:42]} Kf8 {[%clk 00:56:30]} {[%emt 00:00:19]} 18. Nxf5 {[%clk
00:34:18]} {[%emt 00:00:36]} exf5 {[%clk 00:56:51]} {[%emt 00:00:04]} 19. Rab1
{[%clk 00:32:55]} {[%emt 00:01:51]} Nxc4 {[%clk 00:54:57]} {[%emt 00:02:27]} 20.
Rxb7 {[%clk 00:33:12]} {[%emt 00:00:11]} Ndb6 {[%clk 00:54:34]} {[%emt
00:00:53]} 21. Bxc6 {[%clk 00:32:01]} {[%emt 00:01:40]} Rc8 {[%clk 00:51:58]}
{[%emt 00:03:06]} 22. d5 {[%clk 00:28:17]} {[%emt 00:04:21]} f6 {[%clk
00:49:56]} {[%emt 00:02:27]} 23. Rxa7 {[%clk 00:27:55]} {[%emt 00:00:52]} Ne5
{[%clk 00:33:47]} {[%emt 00:16:37]} 24. Rb1 {[%clk 00:26:58]} {[%emt 00:01:33]}
Nxc6 {[%clk 00:31:45]} {[%emt 00:02:26]} 25. dxc6 {[%clk 00:27:18]} {[%emt
00:00:12]} Rxc6 {[%clk 00:31:52]} {[%emt 00:00:20]} 26. Rxb6 {[%clk 00:27:15]}
{[%emt 00:00:34]} 1-0

[Event "Skanderborg Skakklub SmukSkak EMT"]
[Site "Niels Ebbesenskolen, Skanderborg, Denmark"]
[Date "2020.08.22"]
[Round "2.5"]
[White "Hansen, Lars"]
[Black "Thøgersen, Rasmus"]
[Result "0-1"]
[TimeControl "90 min. til 40 træk, derefter 30 min. plus opsparet tid til resten af partiet med 30 sek. tillæg pr. træk fra træk ét."]
[WhiteFideId "1402528"]
[BlackFideId "1431412"]
[WhiteElo "2223"]
[BlackElo "2267"]

1. d4 {[%clk 01:26:29]} {[%emt 00:04:29]} Nf6 {[%clk 01:30:52]} {[%emt
00:00:08]} 2. Bg5 {[%clk 01:26:44]} {[%emt 00:00:14]} Ne4 {[%clk 01:30:19]}
{[%emt 00:01:07]} 3. Bf4 {[%clk 01:27:06]} {[%emt 00:00:05]} d5 {[%clk
01:29:28]} {[%emt 00:01:22]} 4. e3 {[%clk 01:27:21]} {[%emt 00:00:14]} e6
{[%clk 01:21:41]} {[%emt 00:08:18]} 5. Bd3 {[%clk 01:27:05]} {[%emt 00:00:45]}
Bd6 {[%clk 01:20:47]} {[%emt 00:01:28]} 6. Qg4 {[%clk 01:26:23]} {[%emt
00:01:09]} Qf6 {[%clk 01:09:36]} {[%emt 00:11:44]} 7. Bxe4 {[%clk 01:24:58]}
{[%emt 00:01:51]} Bxf4 {[%clk 01:08:42]} {[%emt 00:01:25]} 8. Bxd5 {[%clk
01:00:09]} {[%emt 00:25:19]} Bd6 {[%clk 01:02:38]} {[%emt 00:06:34]} 9. Be4
{[%clk 00:56:29]} {[%emt 00:04:07]} Nd7 {[%clk 00:59:06]} {[%emt 00:04:04]} 10.
Nd2 {[%clk 00:53:03]} {[%emt 00:03:56]} e5 {[%clk 00:50:13]} {[%emt 00:09:25]}
11. Ne2 {[%clk 00:38:36]} {[%emt 00:14:56]} O-O {[%clk 00:43:30]} {[%emt
00:07:12]} 12. Qf3 {[%clk 00:31:37]} {[%emt 00:07:30]} exd4 {[%clk 00:41:06]}
{[%emt 00:02:54]} 13. Nxd4 {[%clk 00:25:11]} {[%emt 00:06:57]} Qg5 {[%clk
00:34:13]} {[%emt 00:07:23]} 14. h4 {[%clk 00:23:41]} {[%emt 00:02:02]} Qc5
{[%clk 00:33:39]} {[%emt 00:01:02]} 15. Qe2 {[%clk 00:17:07]} {[%emt 00:07:01]}
Nf6 {[%clk 00:31:51]} {[%emt 00:02:21]} 16. O-O-O {[%clk 00:10:49]} {[%emt
00:06:49]} a5 {[%clk 00:19:14]} {[%emt 00:13:05]} 17. Qb5 {[%clk 00:08:40]}
{[%emt 00:02:39]} Qa7 {[%clk 00:17:56]} {[%emt 00:01:48]} 18. Qd3 {[%clk
00:05:45]} {[%emt 00:03:30]} Rd8 {[%clk 00:14:43]} {[%emt 00:03:37]} 19. Nb5
{[%clk 00:02:38]} {[%emt 00:03:38]} Qc5 {[%clk 00:14:05]} {[%emt 00:01:08]} 20.
Nb3 {[%clk 00:01:30]} {[%emt 00:01:39]} Qe5 {[%clk 00:12:33]} {[%emt 00:02:01]}
21. Bf3 {[%clk 00:01:56]} {[%emt 00:00:05]} a4 {[%clk 00:08:51]} {[%emt
00:04:12]} 22. N3d4 {[%clk 00:02:19]} {[%emt 00:00:07]} a3 {[%clk 00:08:08]}
{[%emt 00:01:13]} 23. c3 {[%clk 00:01:03]} {[%emt 00:01:46]} axb2+ {[%clk
00:06:01]} {[%emt 00:02:37]} 24. Kxb2 {[%clk 00:01:29]} {[%emt 00:00:04]} Be6
{[%clk 00:03:54]} {[%emt 00:02:36]} 25. a3 {[%clk 00:00:47]} {[%emt 00:01:12]}
Bf8 {[%clk 00:01:56]} {[%emt 00:02:28]} 26. Qc2 {[%clk 00:00:44]} {[%emt
00:00:34]} c6 {[%clk 00:01:38]} {[%emt 00:00:47]} 27. a4 {[%clk 00:00:40]}
{[%emt 00:00:35]} cxb5 {[%clk 00:01:45]} {[%emt 00:00:23]} 28. Nxb5 {[%clk
00:01:01]} {[%emt 00:00:09]} Bd5 {[%clk 00:00:56]} {[%emt 00:01:19]} 29. Rd4
{[%clk 00:00:47]} {[%emt 00:00:43]} Bc5 {[%clk 00:01:04]} {[%emt 00:00:22]} 30.
Rf4 {[%clk 00:01:08]} {[%emt 00:00:09]} Bxf3 {[%clk 00:01:11]} {[%emt
00:00:23]} 31. gxf3 {[%clk 00:01:29]} {[%emt 00:00:09]} Nd5 {[%clk 00:01:13]}
{[%emt 00:00:28]} 32. Rf5 {[%clk 00:01:22]} {[%emt 00:00:37]} Qe6 {[%clk
00:01:30]} {[%emt 00:00:13]} 33. Rd1 {[%clk 00:01:26]} {[%emt 00:00:25]} Be7
{[%clk 00:01:00]} {[%emt 00:01:01]} 34. e4 {[%clk 00:01:10]} {[%emt 00:00:47]}
Nb6 {[%clk 00:00:47]} {[%emt 00:00:43]} 35. Ra1 {[%clk 00:00:42]} {[%emt
00:00:58]} Nc4+ {[%clk 00:01:06]} {[%emt 00:00:10]} 36. Kc1 {[%clk 00:00:59]}
{[%emt 00:00:14]} Qh6+ {[%clk 00:01:10]} {[%emt 00:00:26]} 37. f4 {[%clk
00:01:13]} {[%emt 00:00:16]} Qxh4 {[%clk 00:01:20]} {[%emt 00:00:21]} 38. Qe2
{[%clk 00:00:55]} {[%emt 00:00:47]} 0-1